Cogmind - Beta 9.6 @@@ ROGUE MODE // 2020.05.06 @ 19:12:27 Player: Gobbopathe Result: Destroyed by Y-64 Sentinel with KE Penetrator Performance ------------- Evolutions (6) 3000 Regions Visited (12) 2400 Robots Destroyed (55) 275 Value Destroyed (1640) 1640 Prototype IDs (10) 200 Alien Tech Used (0) 0 Bonus (1168) 1168 TOTAL SCORE: 8683 Bonus ------- Follower Combat Kills 193 Met Warlord at Base 500 MAIN.C Attacked Warlord 500 Friendly Fire -25 Cogmind --------- Core Integrity 0/1150 Matter 300/300 Energy 100/100 System Corruption 11% Temperature Cool (6) Movement Core (50) Location -4/Factory Parts ------- > --- POWER (2) -------- (None) > --- PROPULSION (4) --- (None) > --- UTILITY (10) ----- Advanced Terrain Scan Processor > --- WEAPON (3) ------- (None) > --- INVENTORY (4) ---- Improved Ion Engine Peak State ------------ > --- POWER ------------ Makeshift Power Source Micro Fission Core > --- PROPULSION ------- Xenon Bombardment Thruster Nuclear Pulse Array > --- UTILITY ---------- Coolant Injector Advanced Terrain Scan Processor Melee Analysis Suite Core Analyzer Improved Power Shielding Makeshift Armor Plating Improved Focal Shield Hacking Suite Hacking Suite Makeshift System Shield > --- WEAPON ----------- Powered Hammer Katana Chainsword > --- INVENTORY -------- Makeshift Power Source Rocket Launcher Powered Hammer [Rating: 76] Favorites ----------- Power Micro Fission Core Engine Ion Engine Power Core Micro Fission Core Propulsion Xenon Bombardment Thruster Treads Advanced Medium Treads Leg Improved Titanium Leg Wheel Compact Wheel Flight Unit Xenon Bombardment Thruster Utility Hacking Suite Device Coolant Injector Storage Small Storage Unit Processor Advanced Terrain Scan Processor Hackware Hacking Suite Protection Improved Power Shielding Weapon Katana Energy Gun Improved EM Shotgun Energy Cannon Beam Cannon Ballistic Gun Light Assault Rifle Launcher Rocket Launcher Impact Weapon Powered Hammer Slashing Weapon Katana Build | -11 -10 -9 -9 -8 -7 -6 -5 -5 -5 -5 -4 -4 ------- Run | Scr Mat Mat Sto Mat Fac Fac Fac Upp Upp War Pro Fac Slots Evolved 12 | . . 2 . 2 2 2 2 . . . . 2 Power 1 | . . . . . . . 1 . . . . . Propulsion 2 | . . . . . . . 1 . . . . 1 Utility 8 | . . 2 . 1 2 2 . . . . . 1 Weapon 1 | . . . . 1 . . . . . . . . Parts Attached 96 | 6 7 10 10 16 6 1 15 2 2 11 1 9 Power 12 | 1 . 1 . 3 . . 2 1 . 2 . 2 Engine 7 | 1 . 1 . 3 . . . . . 1 . 1 Core 5 | . . . . . . . 2 1 . 1 . 1 Reactor . | . . . . . . . . . . . . . Propulsion 18 | 2 2 1 1 1 3 . 2 . 1 1 1 3 Treads 1 | . . . . . . . . . . . . 1 Leg 1 | . . . . . 1 . . . . . . . Wheel 8 | 2 2 1 1 1 . . . . . . . 1 Hover . | . . . . . . . . . . . . . Flight 8 | . . . . . 2 . 2 . 1 1 1 1 Utility 35 | 1 2 5 2 8 2 1 6 1 1 4 . 2 Device 9 | . 2 1 . 2 1 . 1 . . . . 2 Storage 4 | 1 . . 1 . . 1 1 . . . . . Processor 7 | . . . . 1 1 . 3 . . 2 . . Hackware 4 | . . . . 2 . . 1 . 1 . . . Protection 11 | . . 4 1 3 . . . 1 . 2 . . Artifact . | . . . . . . . . . . . . . Weapon 31 | 2 3 3 7 4 1 . 5 . . 4 . 2 Energy Gun 11 | 1 2 2 4 1 . . . . . 1 . . Energy Cannon 2 | . . 1 . . . . . . . 1 . . Ballistic Gun 3 | 1 1 . . 1 . . . . . . . . Ballistic Cannon . | . . . . . . . . . . . . . Launcher 3 | . . . 1 . . . 1 . . . . 1 Special Weapon . | . . . . . . . . . . . . . Impact Weapon 3 | . . . . 1 . . . . . 1 . 1 Slashing Weapon 9 | . . . 2 1 1 . 4 . . 1 . . Piercing Weapon . | . . . . . . . . . . . . . Special Melee Weapon . | . . . . . . . . . . . . . Unidentified Prototypes 4 | . . 1 . . . . 1 . . 2 . . Parts Lost 45 | . 1 . 2 12 . . . . 6 . 1 23 Power 6 | . . . . 2 . . . . 1 . . 3 Propulsion 11 | . . . 1 3 . . . . 1 . 1 5 Utility 19 | . . . 1 5 . . . . 3 . . 10 Weapon 9 | . 1 . . 2 . . . . 1 . . 5 Highest Loss Streak 18 | . 1 . 2 9 . . . . 4 . 1 18 Average Slot Usage (%) 81 | . 89 98 93 86 49 58 78 94 91 88 94 70 Engine 5 | . 14 11 11 8 . . . . . 4 5 4 Core 2 | . . . . . . . 6 11 11 5 5 4 Wheel 8 | . 26 21 17 13 . . . . . . . 1 Flight 5 | . . . . . 12 13 14 11 11 11 11 1 Device 8 | . 7 11 11 15 2 6 5 11 8 5 5 9 Storage 5 | . 14 11 11 7 . 4 5 3 . . . . Processor 9 | . . . . 1 14 13 15 17 17 20 17 14 Hackware 8 | . . . . 2 15 13 16 17 19 17 17 9 Protection 8 | . . 21 21 14 . . . 1 3 4 11 8 Energy Gun 5 | . 12 11 19 10 . . . . . . . . Ballistic Gun 2 | . 12 1 . 3 . . . . . . . . Impact Weapon 1 | . . . . . . . . . . 4 5 4 Slashing Weapon 6 | . . . . 8 2 6 9 17 16 10 11 8 Naked Turns . | . . . . . . . . . . . . . Heaviest Build 31 | 12 13 24 26 31 3 8 24 24 22 24 24 28 Greatest Support 32 | 26 26 26 32 32 14 14 27 27 27 28 28 30 Greatest Overweight (x) 9 | . . . 1 3 . . 4 . . . . 9 Average Overweight (x) . | . . . . . . . . . . . . 1 Largest Inventory Capacity 6 | 6 6 6 6 6 4 4 4 4 4 4 4 4 Average Capacity 4 | 4 6 6 6 5 4 4 4 4 4 4 4 4 Most Carried 6 | 2 5 6 6 6 4 4 4 4 4 4 4 4 Average Carried 4 | 1 2 5 5 5 3 3 3 4 2 3 3 3 Final Capacity 6 | 6 6 6 6 4 4 4 4 4 4 4 4 4 Final Carried 6 | 2 4 6 6 4 3 4 4 4 2 4 3 1 Class Distribution -------------------- 54% | Hacker-Mutant 40% | Mutant 4% | Commander-Mutant Dominant Class ---------------- Mutant | -10/Materials Mutant | -9/Materials Commander-Mutant | -9/Storage Mutant | -8/Materials Hacker-Mutant | -7/Factory Hacker-Mutant | -6/Factory Hacker-Mutant | -5/Factory Hacker-Mutant | -5/Upper Caves Hacker-Mutant | -5/Upper Caves Hacker-Mutant | -5/Warlord Hacker-Mutant | -4/Proximity Caves Hacker-Mutant | -4/Factory Resources | -11 -10 -9 -9 -8 -7 -6 -5 -5 -5 -5 -4 -4 ----------- Run | Scr Mat Mat Sto Mat Fac Fac Fac Upp Upp War Pro Fac Matter Collected 1243 | 249 106 100 91 216 . . 109 152 51 100 15 54 Remotely . | . . . . . . . . . . . . . Salvage Created 2292 | . 284 194 342 593 . . 40 60 70 . 30 679 Parts 135 | . 18 10 26 39 . . 5 5 4 . . 28 Haulers Intercepted . | . . . . . . . . . . . . . Recyclers Shooed 7 | . 1 . 2 1 . . 1 . . . . 2 Parts Field Recycled . | . . . . . . . . . . . . . Retrieved Matter . | . . . . . . . . . . . . . Parts Self-Destructed 45 | . . . . . . . . 7 6 32 . . Prevented 16 | . . . . . . . . . . 16 . . Kills | -11 -10 -9 -9 -8 -7 -6 -5 -5 -5 -5 -4 -4 ------- Run | Scr Mat Mat Sto Mat Fac Fac Fac Upp Upp War Pro Fac Combat Hostiles Destroyed 46 | . 7 5 6 13 . . 4 1 1 . 1 8 Melee 12 | . . . . 1 . . 1 1 1 . 1 7 Guns 23 | . 7 1 4 11 . . . . . . . . Cannons 2 | . . 2 . . . . . . . . . . AOE 7 | . . 2 2 . . . 3 . . . . . Classes Destroyed 8 | . 3 1 1 1 . . . 1 1 . . . Worker 2 | . . . 2 . . . . . . . . . Recycler 7 | . 1 1 2 . . . . . . . . 3 Swarmer 21 | . 3 3 3 2 . . 4 . . . 1 5 Grunt 14 | . 4 . 3 7 . . . . . . . . Brawler 1 | . . . . 1 . . . . . . . . Sentry 5 | . . 2 . 3 . . . . . . . . Hunter 2 | . . . . . . . . . 1 . . 1 Programmer 3 | . . . . . . . . 1 . . . 2 Best Kill Streak 6 | . 6 4 5 6 . . 3 1 1 . 1 4 Combat Bots Only 6 | . 4 3 5 6 . . 3 1 1 . 1 3 Max Kills in Single Turn 3 | . 1 3 2 1 . . 2 1 1 . 1 1 Gunslinging . | . . . . . . . . . . . . . Exploded 2 | . . 2 2 . . . 2 . . . . . Melee 1 | . . . . 1 . . 1 1 1 . 1 1 Uniques/NPCs Destroyed . | . . . . . . . . . . . . . Combat | -11 -10 -9 -9 -8 -7 -6 -5 -5 -5 -5 -4 -4 -------- Run | Scr Mat Mat Sto Mat Fac Fac Fac Upp Upp War Pro Fac Damage Taken 6119 | . 402 219 252 1465 . 17 119 66 632 37 167 2743 Core 1969 | . 63 8 38 420 . . 28 21 164 37 39 1151 Absorbed by Shields 26 | . . . . . . . . . . . . 26 Core Remaining (%) 79 | 100 74 . 88 23 100 100 . . . . 71 . Volleys Fired 105 | . 30 9 21 38 . . 4 . . . . 3 Largest 2 | . 2 2 2 2 . . 1 . . . . 1 Hottest 110 | . 70 110 101 101 . . 33 . . . . 33 Shots Fired 201 | . 59 18 41 76 . . 4 . . . . 3 Gun 184 | . 59 9 40 76 . . . . . . . . Cannon 9 | . . 9 . . . . . . . . . . Launcher 8 | . . . 1 . . . 4 . . . . 3 Special . | . . . . . . . . . . . . . Kinetic 54 | . 30 . . 24 . . . . . . . . Thermal 60 | . 19 15 20 6 . . . . . . . . Explosive 8 | . . . 1 . . . 4 . . . . 3 Electromagnetic 79 | . 10 3 20 46 . . . . . . . . Robot Hit Streak 15 | . 15 7 8 13 . . 4 . . . . 3 Robot Miss Streak 4 | . 3 2 4 3 . . 1 . . . . 1 Penetration Max . | . . . . . . . . . . . . . Secondary Targets 4 | . 2 . 1 1 . . . . . . . . Max Gunslinging Chain 1 | . 1 . 1 1 . . . . . . . . Shots Hit Robots 236 | . 41 13 30 78 . . 6 2 7 . 1 58 Core Hits 107 | . 18 8 18 32 . . 7 2 2 . 1 19 Critical Hits 3 | . . . . 1 . . . . . . . 2 Critical Kills . | . . . . . . . . . . . . . Critical Parts Destroyed 3 | . . . . 1 . . . . . . . 2 Melee Attacks 128 | . . . 7 13 . . 8 9 12 . 5 74 Impact 26 | . . . . 9 . . . . . . . 17 Slashing 102 | . . . 7 4 . . 8 9 12 . 5 57 Piercing . | . . . . . . . . . . . . . Sneak Attacks 7 | . . . . . . . . . . . . 7 Combat Hostiles . | . . . . . . . . . . . . . Follow-up Attacks 18 | . . . . 2 . . 2 1 2 . . 11 Damage Inflicted 6366 | . 447 598 582 1247 . . 522 83 276 . 37 2574 Guns 1879 | . 447 86 357 989 . . . . . . . . Cannons 88 | . . 88 . . . . . . . . . . Explosions 1173 | . . 424 193 43 . . 416 . . . . 97 Melee 3202 | . . . 32 191 . . 106 83 276 . 37 2477 Ramming 24 | . . . . 24 . . . . . . . . Kinetic 533 | . 177 . . 356 . . . . . . . . Thermal 1055 | . 189 550 201 115 . . . . . . . . Explosive 633 | . . . 120 . . . 416 . . . . 97 Electromagnetic 919 | . 81 48 229 561 . . . . . . . . Impact 564 | . . . . 94 . . . . . . . 470 Slashing 2638 | . . . 32 97 . . 106 83 276 . 37 2007 Piercing . | . . . . . . . . . . . . . Highest Corruption 11 | . . . . 1 . . . . . 2 1 11 Average Corruption 3 | . . . . 1 . . . . . 1 1 7 Corruption Purged . | . . . . . . . . . . . . . Effects 13 | . . . . 2 . . . . . 1 . 10 Message Errors 2 | . . . . . . . . . . 1 . 1 Matter Fused 1 | . . . . . . . . . . . . 1 Heat Flow Errors 1 | . . . . . . . . . . . . 1 Energy Discharges 3 | . . . . . . . . . . . . 3 Data Loss (minor) 1 | . . . . . . . . . . . . 1 Targeting Errors 5 | . . . . 2 . . . . . . . 3 Overload Shots . | . . . . . . . . . . . . . Overflow Damage 506 | . . 88 18 7 . . 93 . 2 . . 298 Projectiles . | . . . . . . . . . . . . . Explosions 182 | . . 88 18 . . . 42 . . . . 34 Melee 324 | . . . . 7 . . 51 . 2 . . 264 Knockbacks 4 | . . . . . . . . . . . . 4 Impact 4 | . . . . . . . . . . . . 4 Kinetic . | . . . . . . . . . . . . . Secondary . | . . . . . . . . . . . . . Self-Inflicted Damage 201 | . . 74 27 11 . . 22 . . . . 67 Shots 5 | . . 1 1 . . . 1 . . . . 2 Rammed 5 | . . . . 5 . . . . . . . . Targets Rammed 5 | . . . . 5 . . . . . . . . Kicked . | . . . . . . . . . . . . . Crushed . | . . . . . . . . . . . . . Highest Temperature 115 | . 106 32 3 2 . . . . . . 11 115 Average Temperature 31 | . 34 14 2 2 . . . . . . 6 62 Received Heat Transfer 786 | . 78 18 57 468 . . 9 . 63 18 45 30 Siege Activations . | . . . . . . . . . . . . . Robots Corrupted . | . . . . . . . . . . . . . Combat Hostiles . | . . . . . . . . . . . . . Parts Fried 7 | . . . . 3 . . . . . . . 4 Impact Corruptions 6 | . . . . 1 . . . . . . . 5 Robots Melted . | . . . . . . . . . . . . . Combat Hostiles . | . . . . . . . . . . . . . Parts Melted 5 | . 3 2 . . . . . . . . . . Heat Transferred 1719 | . 555 496 433 235 . . . . . . . . Parts Sabotaged . | . . . . . . . . . . . . . Parts Stolen . | . . . . . . . . . . . . . Parts Stripped . | . . . . . . . . . . . . . Power Chain Reactions 2 | . . . 1 1 . . . . . . . . Missiles Intercepted . | . . . . . . . . . . . . . Alert | -11 -10 -9 -9 -8 -7 -6 -5 -5 -5 -5 -4 -4 ------- Run | Scr Mat Mat Sto Mat Fac Fac Fac Upp Upp War Pro Fac Peak Influence 389 | . 201 184 389 281 42 50 188 . . . . 166 Average Influence 105 | . 88 82 246 169 37 34 56 . . . . 65 Maximum Alert Level 1 | . 1 . 1 1 . . . . . . . . Low Security (%) 83 | 100 97 100 33 60 100 100 100 . . . . 100 Level 1 16 | . 2 . 66 39 . . . . . . . . Level 2 . | . . . . . . . . . . . . . Level 3 . | . . . . . . . . . . . . . Level 4 . | . . . . . . . . . . . . . Level 5 . | . . . . . . . . . . . . . High Security . | . . . . . . . . . . . . . Max Security . | . . . . . . . . . . . . . Squads Dispatched 13 | . 2 . 2 2 1 . 1 . 1 . . 4 Investigation . | . . . . . . . . . . . . . Extermination 3 | . . . . . 1 . 1 . . . . 1 Reinforcement 9 | . 2 . 2 2 . . . . . . . 3 Assault 1 | . . . . . . . . . 1 . . . Garrison . | . . . . . . . . . . . . . Intercept . | . . . . . . . . . . . . . Construction Impeded 1 | . . . . . . . . . . . . 1 Haulers Reinforced . | . . . . . . . . . . . . . Stealth | -11 -10 -9 -9 -8 -7 -6 -5 -5 -5 -5 -4 -4 --------- Run | Scr Mat Mat Sto Mat Fac Fac Fac Upp Upp War Pro Fac Distress Signals 6 | . 1 . 1 3 . . . . . . . 1 Communications Jammed . | . . . . . . . . . . . . . Distress Signals . | . . . . . . . . . . . . . Times Spotted 153 | . 12 5 19 31 . 1 6 1 30 23 6 19 Peak Tracking Total 15 | . 4 3 6 9 1 3 5 1 15 11 3 7 Tactical Retreats 12 | . . . 1 1 . . 1 . 5 1 1 2 Traps | -11 -10 -9 -9 -8 -7 -6 -5 -5 -5 -5 -4 -4 ------- Run | Scr Mat Mat Sto Mat Fac Fac Fac Upp Upp War Pro Fac Traps Triggered 2 | . . . . 1 . . . . . . . 1 Indirectly . | . . . . . . . . . . . . . Trap Hack Attempts . | . . . . . . . . . . . . . Triggered . | . . . . . . . . . . . . . Disarmed . | . . . . . . . . . . . . . Reprogrammed . | . . . . . . . . . . . . . Reused . | . . . . . . . . . . . . . Traps Extracted . | . . . . . . . . . . . . . Installed . | . . . . . . . . . . . . . Triggered 11 | . . . . . . . . 7 . 4 . . Machines | -11 -10 -9 -9 -8 -7 -6 -5 -5 -5 -5 -4 -4 ---------- Run | Scr Mat Mat Sto Mat Fac Fac Fac Upp Upp War Pro Fac Machines Disabled 2 | . . 1 . 1 . . . . . . . . Max in Single Turn 1 | . . 1 . 1 . . . . . . . . Machines Sabotaged . | . . . . . . . . . . . . . Garrisons Compromised . | . . . . . . . . . . . . . Overloaded Fab Kills . | . . . . . . . . . . . . . Fab Network Shutdowns . | . . . . . . . . . . . . . Hacking | -11 -10 -9 -9 -8 -7 -6 -5 -5 -5 -5 -4 -4 --------- Run | Scr Mat Mat Sto Mat Fac Fac Fac Upp Upp War Pro Fac Machines Accessed 38 | . 4 2 8 6 3 . 3 . 1 10 1 . Terminals 20 | . 3 1 7 5 2 . 1 . . . 1 . Fabricators . | . . . . . . . . . . . . . Repair Stations 5 | . 1 1 1 1 . . 1 . . . . . Recycling Units . | . . . . . . . . . . . . . Scanalyzers 2 | . . . . . 1 . 1 . . . . . Garrison Access . | . . . . . . . . . . . . . Total Hacks 103 | . 19 5 23 23 8 . 8 . 1 14 2 . Successful 73 | . 14 2 15 15 3 . 7 . 1 14 2 . Failed 30 | . 5 3 8 8 5 . 1 . . . . . Catastrophic 3 | . 1 . 2 . . . . . . . . . Database Lockouts . | . . . . . . . . . . . . . Manual 39 | . 6 2 12 13 4 . 2 . . . . . Terminals 62 | . 9 2 21 20 6 . 2 . . . 2 . Fabricators . | . . . . . . . . . . . . . Repair Stations 20 | . 10 3 2 3 . . 2 . . . . . Recycling Units . | . . . . . . . . . . . . . Scanalyzers 6 | . . . . . 2 . 4 . . . . . Garrison Access . | . . . . . . . . . . . . . Terminal Hacks 41 | . 5 . 9 10 . . . . 1 14 2 . Record 14 | . . . . . . . . . . 12 2 . Robot Schematic 1 | . 1 . . . . . . . . . . . Prototype ID Bank 3 | . 1 . . 2 . . . . . . . . Open Door 5 | . . . 2 . . . . . 1 2 . . Level Access Points 1 | . . . . 1 . . . . . . . . Branch Access Points 1 | . . . . 1 . . . . . . . . Terminal Index 2 | . . . 1 1 . . . . . . . . Fabricator Index 1 | . . . 1 . . . . . . . . . Alert Level 2 | . 1 . . 1 . . . . . . . . Unreport Threat 5 | . 2 . 2 1 . . . . . . . . Locate Traps 2 | . . . 1 1 . . . . . . . . Dispatch Records 2 | . . . 1 1 . . . . . . . . Recall Reinforcements 1 | . . . . 1 . . . . . . . . Zone Layout 1 | . . . 1 . . . . . . . . . Fabricator Hacks . | . . . . . . . . . . . . . Repair Station Hacks 16 | . 8 2 2 2 . . 2 . . . . . Scan Component 8 | . 4 1 1 1 . . 1 . . . . . Repair 8 | . 4 1 1 1 . . 1 . . . . . Recycling Unit Hacks . | . . . . . . . . . . . . . Scanalyzer 6 | . . . . . 2 . 4 . . . . . Insert Component 3 | . . . . . 1 . 2 . . . . . Analyze 3 | . . . . . 1 . 2 . . . . . Garrison Access Hacks . | . . . . . . . . . . . . . Unauthorized Hacks 10 | . 1 . 4 3 1 . 1 . . . . . Terminals 10 | . 1 . 4 3 1 . 1 . . . . . Track 1 | . . . . 1 . . . . . . . . Assimilate 1 | . . . 1 . . . . . . . . . Botnet 8 | . 1 . 3 2 1 . 1 . . . . . Fabricators . | . . . . . . . . . . . . . Repair Stations . | . . . . . . . . . . . . . Recycling Units . | . . . . . . . . . . . . . Scanalyzers . | . . . . . . . . . . . . . Garrison Access . | . . . . . . . . . . . . . Data Cores Recovered . | . . . . . . . . . . . . . Used . | . . . . . . . . . . . . . Hacking Detections 24 | . 4 2 7 6 3 . 2 . . . . . Full Trace Events . | . . . . . . . . . . . . . Feedback Events . | . . . . . . . . . . . . . Feedback Blocked . | . . . . . . . . . . . . . Robot Schematics Acquired 1 | . 1 . . . . . . . . . . . Robots Built . | . . . . . . . . . . . . . Matter . | . . . . . . . . . . . . . Time . | . . . . . . . . . . . . . Total Robot Build Rating . | . . . . . . . . . . . . . Part Schematics Acquired 3 | . . . . . 1 . 2 . . . . . Parts Built . | . . . . . . . . . . . . . Matter . | . . . . . . . . . . . . . Time . | . . . . . . . . . . . . . Total Part Build Rating . | . . . . . . . . . . . . . Parts Repaired 8 | . 4 1 1 1 . . 1 . . . . . Time 232 | . 104 26 51 32 . . 19 . . . . . Parts Recycled . | . . . . . . . . . . . . . Recycled Matter . | . . . . . . . . . . . . . Retrieved Matter . | . . . . . . . . . . . . . Retrieved Components . | . . . . . . . . . . . . . Parts Scanalyzed 3 | . . . . . 1 . 2 . . . . . Part Schematics Acquired 3 | . . . . . 1 . 2 . . . . . Parts Damaged . | . . . . . . . . . . . . . Bothacking | -11 -10 -9 -9 -8 -7 -6 -5 -5 -5 -5 -4 -4 ------------ Run | Scr Mat Mat Sto Mat Fac Fac Fac Upp Upp War Pro Fac Used RIF Installer . | . . . . . . . . . . . . . Robots Hacked . | . . . . . . . . . . . . . Non-combat . | . . . . . . . . . . . . . Combat . | . . . . . . . . . . . . . Robot Hacks Applied . | . . . . . . . . . . . . . Relay Couplers Released . | . . . . . . . . . . . . . Robots Rewired . | . . . . . . . . . . . . . Allies Hacked . | . . . . . . . . . . . . . Hacks Repelled . | . . . . . . . . . . . . . Allies | -11 -10 -9 -9 -8 -7 -6 -5 -5 -5 -5 -4 -4 -------- Run | Scr Mat Mat Sto Mat Fac Fac Fac Upp Upp War Pro Fac Total Allies 10 | . . . 10 . . . . . . . . . Largest Group 10 | . . . 10 . . . . . . . . . Highest-Rated Group 88 | . . . 88 . . . . . . . . . Highest-Rated Ally 16 | . . . 16 . . . . . . . . . Total Orders . | . . . . . . . . . . . . . Ally Attacks 57 | . . . 57 . . . . . . . . . Total Damage 550 | . . . 550 . . . . . . . . . Kills 12 | . . . 12 . . . . . . . . . Allies Corrupted . | . . . . . . . . . . . . . Allies Melted . | . . . . . . . . . . . . . Intel | -11 -10 -9 -9 -8 -7 -6 -5 -5 -5 -5 -4 -4 ------- Run | Scr Mat Mat Sto Mat Fac Fac Fac Upp Upp War Pro Fac Robot Analysis Total . | . . . . . . . . . . . . . Derelict Logs Recovered 3 | . . . . . . . . 1 . . 2 . Drone Launches . | . . . . . . . . . . . . . Drone Recoveries . | . . . . . . . . . . . . . Exploration | -11 -10 -9 -9 -8 -7 -6 -5 -5 -5 -5 -4 -4 ------------- Run | Scr Mat Mat Sto Mat Fac Fac Fac Upp Upp War Pro Fac Turns Passed 4164 | 45 410 349 375 703 310 272 316 178 136 436 76 558 Spaces Moved 4246 | 37 183 276 227 499 211 170 429 429 291 946 173 375 Core 279 | 1 . . . 103 94 . 3 . . . . 78 Treads 6 | . . . . . . . . . . . . 6 Legs . | . . . . . . . . . . . . . Wheels 1199 | 36 183 276 227 396 . . . . . . . 81 Hover . | . . . . . . . . . . . . . Flight 2762 | . . . . . 117 170 426 429 291 946 173 210 Fastest Speed 34 | 50 90 90 90 50 37 37 34 37 37 37 37 37 Average Speed 59 | 92 90 90 97 95 42 37 37 37 37 37 37 97 Slowest Speed 500 | 100 90 90 110 200 50 37 250 37 37 37 37 500 Overloaded Moves . | . . . . . . . . . . . . . Propulsion Burnouts . | . . . . . . . . . . . . . Robots Hopped 9 | . . . . . . . . . 2 7 . . Cave-ins Triggered . | . . . . . . . . . . . . . Exploration Rate (%) 33 | 3 28 23 52 46 5 6 12 65 47 96 45 11 Regions Visited 12 Branch Regions 5 Pre-discovered Areas 1 | . . . 1 . . . . . . . . . Known Exits Taken 2 | . . . . 1 . . . 1 . . . . Unknown Exits Taken 10 | 1 1 1 1 . 1 1 1 . 1 1 1 . Scrap Searched 3 | . . . . . . . . 2 1 . . . Spaces Dug 15 | . . . 6 1 . . . 4 . . 2 2 Terrain Destroyed 102 | . . 42 13 6 . . 23 4 . . 2 12 Melee 15 | . . . 6 1 . . . 4 . . 2 2 Projectile . | . . . . . . . . . . . . . AOE 87 | . . 42 7 5 . . 23 . . . . 10 Actions | -11 -10 -9 -9 -8 -7 -6 -5 -5 -5 -5 -4 -4 --------- Run | Scr Mat Mat Sto Mat Fac Fac Fac Upp Upp War Pro Fac Total 5509 | 44 373 358 325 626 429 377 569 438 300 1023 177 470 Wait 884 | . 148 46 58 41 208 206 105 . . 63 . 9 Move 4220 | 36 182 275 226 498 210 169 428 428 286 935 172 375 Hop 5 | . . . . . . . . . 2 3 . . Pick Up 31 | 2 4 9 . 5 2 1 4 . . 3 . 1 Fast Attach 58 | 6 5 4 2 8 5 1 11 1 1 9 . 5 Attach 17 | . 1 1 1 6 1 . 2 . 1 . 1 3 Detach 7 | . . . . 3 . . 2 . . 2 . . Swap 21 | . 1 5 7 2 . . 2 1 . 2 . 1 Drop 38 | . 2 9 . 9 3 . 6 2 . 6 . 1 Fire 105 | . 30 9 21 38 . . 4 . . . . 3 Melee 105 | . . . 7 11 . . 5 6 10 . 4 62 Ram 5 | . . . . 5 . . . . . . . . Kick . | . . . . . . . . . . . . . Crush . | . . . . . . . . . . . . . Escape Stasis 10 | . . . . . . . . . . . . 10 Rewire 3 | . . . 3 . . . . . . . . . Trap . | . . . . . . . . . . . . . Miscellaneous . | . . . . . . . . . . . . . Route ------- -11/Scrapyard -10/Materials -9/Materials -9/Storage (discovered 2 exits: *Mat / [Rec]) -8/Materials (discovered 3 exits: *Fac x3) -7/Factory -6/Factory -5/Factory -5/Upper Caves -5/Upper Caves -5/Warlord -4/Proximity Caves -4/Factory History --------- Turn | Location | Event 21 | -11/Scrapyard | Discovered new exit (range 15) 46 | -11/Scrapyard | Entered Materials 285 | -10/Materials | Repaired Wheel 306 | -10/Materials | Build established: Mutant 313 | -10/Materials | Repaired Med. Laser 340 | -10/Materials | Repaired Lgt. Assault Rifle 368 | -10/Materials | Repaired Com. Wheel 416 | -10/Materials | Discovered new exit (range 14) 456 | -10/Materials | Entered another Materials area 456 | -9/Materials | Evolved 2 slots: Utility x2 577 | -9/Materials | Repaired Com. Wheel 776 | -9/Materials | Discovered new exit (range 14) 805 | -9/Materials | Entered Storage 839 | -9/Storage | Assisted by bots powering up and referring to "LRC-V3" 863 | -9/Storage | Learned location of Armory (-4) 964 | -9/Storage | Discovered new exit (range 11) 1041 | -9/Storage | Repaired Imp. EM Shotgun 1157 | -9/Storage | Discovered new exit (range 16) 1180 | -9/Storage | Entered Materials 1180 | -8/Materials | Evolved 2 slots: Utility x1, Weapon x1 1365 | -8/Materials | Repaired Med. Armor Plating 1795 | -8/Materials | Core integrity fell below 50% 1832 | -8/Materials | Lost 9 parts (1p2n4u2w) 1843 | -8/Materials | Identified exit to Factory 1883 | -8/Materials | Entered Factory 1883 | -7/Factory | Evolved 2 slots: Utility x2 2109 | -7/Factory | Build established: Hacker-Mutant 2188 | -7/Factory | Discovered new exit (range 16) 2193 | -7/Factory | Entered another Factory area 2193 | -6/Factory | Evolved 2 slots: Utility x2 2446 | -6/Factory | Discovered new exit (range 15) 2465 | -6/Factory | Entered another Factory area 2465 | -5/Factory | Evolved 2 slots: Power x1, Propulsion x1 2621 | -5/Factory | Repaired Katana 2775 | -5/Factory | Discovered new exit (range 15) 2781 | -5/Factory | Entered Upper Caves 2908 | -5/Upper Caves | Spotted B-75 Beast 2929 | -5/Upper Caves | Identified exit to Upper Caves 2959 | -5/Upper Caves | Entered another Upper Caves area 2967 | -5/Upper Caves | Encountered a Warlord checkpoint 2985 | -5/Upper Caves | Attracted the attention of an 0b10 outpost 3029 | -5/Upper Caves | Discovered new exit (range 9) 3095 | -5/Upper Caves | Entered Warlord 3108 | -5/Warlord | System corruption cleaned by Quarantine Array 3124 | -5/Warlord | Found Signal Generator 3125 | -5/Warlord | Lost 4 parts (1p2u1w) 3241 | -5/Warlord | Visited the Vortex Lab 3243 | -5/Warlord | Found Prototype Energy Gun 3243 | -5/Warlord | Identified Vortex Rail 3246 | -5/Warlord | Found Prototype Energy Cannon 3246 | -5/Warlord | Identified Vortex Cannon 3251 | -5/Warlord | Warlord's base attacked by MAIN.C 3285 | -5/Warlord | Met Warlord 3355 | -5/Warlord | Opened side exit 3493 | -5/Warlord | Warlord forces counterattacked 3524 | -5/Warlord | Discovered new exit (range 15) 3531 | -5/Warlord | Entered Proximity Caves 3600 | -4/Proximity Caves | Discovered new exit (range 8) 3607 | -4/Proximity Caves | Entered Factory 3607 | -4/Factory | Evolved 2 slots: Propulsion x1, Utility x1 3757 | -4/Factory | Lost 4 parts (3n1u) 4107 | -4/Factory | Core integrity fell below 50% 4134 | -4/Factory | Core integrity fell below 20% 4137 | -4/Factory | System corruption reached 10% 4165 | -4/Factory | Destroyed by Y-64 Sentinel with KE Penetrator Last Messages --------------- 04151_ Slug penetrates Wall. 04154_ O-16 Technician: "IFF HANDSHAKE FAILED. SECURING TERMINAL." 04155_ System corrupted: Energy discharge (-22). 04155_ Triggered Stasis Trap. 04155_ A bubble of rippling energy engulfs the area. 04155_ Field strength at 94. 04156_ Field strength at 88. 04157_ Field strength at 82. 04158_ Field strength at 76. 04159_ Field strength at 70. 04159_ ALERT: Hostiles spotted, dispatching reinforcements to Terminal F011. 04160_ Field strength at 64. 04161_ Field strength at 58. 04162_ Field strength at 52. 04163_ Penetrated by Slug. 04163_ Field strength at 34. 04164_ Field strength at 28. 04165_ Field strength at 22. 04165_ Penetrated by Slug. Map ----- +----------------------------------------------------+ | ????????????????????????????????????????????????# | | ????????????????????????????????????????????????# | | ????????????????????????????????????????????????# | | ????????????????????????????????????????????????# | | ????????????????????????????????????????????????+ | | ????????????????????????????????????????????????# | | ????????????????????????????????????????????????## | | ?????????????????????????????????????????????????? | | ????????????????????????????????? ?????????????? | | ##????????????????????????????? ?????????????? | | # ##?????#####??#?????????????# ?????????????? | | #] ?????# ????????????? ?????????????? | | # "?? ## "" "?????????????# ?????????????? | | # """ ## "" ""????????????# ?????????????? | | # S" ## """ """???????????# ?????????????? | | # """ ## """ """ ??????????# #????????????? | | # """ ## "" """ !#????????# #????????????? | | # ## #????????+ #????????????? | | # !! ##+#########??????????# +????????????? | | # !! ## ## * #####?????????# #????????????? | | # ! ## % #?????????# ############## | | ?? ??# ## ### #?????????# # ! # | | ####+##### ### ##?# #??######## # + | | + #?# #??# #??# # # | | # #?# #??# #??# + ] # | | # #?# #?## ##?# @ # # | | / #?# #?# ] ### # """" """" # | | #### #?# #?# Y # """" """" # | | #### ###+###! ##### #### # """" """" # | | # # !%!"!=%!=#####???? #??# # """" """" # | | # # ####!%[[=#???????? #??# # """" """" # | | ## =%=# # * #???????? #??# # """" """" # | | ! ### """ #########+#### + # | | # !% # """ # # ############## | | ### ! ## """ #! !! # # # | | ?# ## # ! # # # | | ?## ## # # # """ """ # | | ### ### ]]]# """ """ # # """ """ # | | [ ## ]] # """ """ + + """ """ # | | ## ]] # """ """ # # # | | ## # # # """ """ # | | ######## """ """ # # """ """ # | | %#??????# """ """ # # """ """ # | | #??????# """ """ # # # | | % #??????# # # # | | #??????############## # # | | #???????????????????# ############## | | #???????????????????# #????????????? | | % #???????????????????# #????????????? | | %% #???????????????????# #????????????? | +----------------------------------------------------+ Best States ------------- Heat Dissipation 53 Coolant Potential 65 Energy Generation 31 Energy Capacity 265 Matter Stores 300 Matter Capacity 600 Sight Range 16 Robot Scan Range 13 Terrain Scan Range 20 Terrain Scan Density 310 Armor Coverage 225 Resistance: KI 25 Power Shielding 66 Propulsion Shielding 66 Evasion (%) 63 Targeting Accuracy 6 Melee Accuracy 10 Core Analysis 6 Recoil Reduction 1 Offensive Hacking 30 Defensive Hacking 11 Item Schematics ----------------- Xenon Bombardment Thruster | -7/Factory | Scanalyzed Nuclear Pulse Array | -5/Factory | Scanalyzed Rocket Launcher | -5/Factory | Scanalyzed Robot Schematics ------------------ O-16 Technician | -10/Materials | Hacked Fabricated ------------ Nothing Alien Tech Used ----------------- None Achievements -------------- None Challenges ------------ None Game ------ Seed HugeGlidesysProjector Manual? 0 Play Time 01:37:34 Cumulative 121.4 hours Start 2020.05.06 @ 13:08:12 End 2020.05.06 @ 19:12:27 Sessions 3 Manual Loads 0 Difficulty Rogue Special Mode None Game No. 60 Rogue 60 Adventurer 0 Explorer 0 Win Type - Total 4 Types 3/0/1/0/0/0/0 Lore% 62 Gallery% 70 Achievement% 51 Wizard Run 0 Options --------- ASCII 0 Keyboard 1 Movement Numpad Keybinds 0 Fullscreen 2 Font 18/SmallcapsGlow Map View 76x50 Tactical HUD 1 Map Filters NONE Filters NONE Steam 1 RUN: d383dd0b-ba1b-4539-ab57-62526f23f39d